[Event "VII Totalizator Sportowy 2022"]
[Site "Bydgoszcz"]
[Date "2022.07.02"]
[Round "8.3"]
[White "Janik, Igor"]
[Black "Jakubowski, Krzysztof"]
[Result "1/2-1/2"]
[ECO "A34"]
[WhiteElo "2525"]
[BlackElo "2475"]
[Annotator "TA"]
[PlyCount "106"]
[EventDate "2022.06.25"]
[EventType "swiss"]
[EventCountry "POL"]
[SourceTitle "playchess.com"]
[Source "ChessBase"]
[SourceQuality "1"]
[TimeControl "40/5400+30:1800+30"]

{[%evp 14,106,11,11,12,15,17,6,0,8,18,-8,21,-54,-43,-105,-114,-89,-110,-108,-111,-98,-95,-97,-75,-97,-99,-103,-93,-115,-110,-97,-102,-99,-91,-92,-95,-204,-88,-127,-70,-377,-356,-368,-358,-330,-356,-369,-372,-353,-370,-375,-360,-372,-372,-364,-335,-364,-156,-157,-150,-157,-103,-104,-104,-105,-90,-128,-124,-125,-87,-102,-58,-162,-51,-58,-9,-119,-22,-62,0,-114,0,-55,0,-115,-127,-175,-170,-101,-101,-145,-142,-149,-121]} 1. c4 {[%emt 0:00:09]} c5 {[%emt 0:00:13]} 2. Nc3 {[%emt 0:00:27]} Nf6 {[%emt 0:00:13]} 3. g3 {[%emt 0:00:09]} d5 {[%emt 0:00:12]} 4. cxd5 {[%emt 0:00:05]} Nxd5 {[%emt 0:00:05]} 5. Bg2 {[%emt 0:00:05]} Nc7 {[%emt 0:00:06]} 6. d3 {[%emt 0:00:05]} e5 {[%emt 0:00:06]} 7. Be3 {[%emt 0:00:12]} Be7 {[%emt 0:00:56]} 8. Rc1 {[%emt 0:00:41]} Nd7 {[%emt 0:07:47][%cal Bb8d7,Bd7f6,Bf6g4,Bg4e3][%mdl 32] A34: Symmetrical English: 2 Nc3, lines with ...d5.} 9. Nf3 {[%emt 0:01:17]} O-O {[%emt 0:00:26]} 10. Nd2 {[%emt 0:02:12]} Rb8 {[%emt 0:00:58] The position is equal.} 11. O-O {[%emt 0:11:46]} b6 {[%emt 0:01:52]} 12. Qa4 {[%emt 0:03:48]} a5 {[%emt 0:00:30] [#]} 13. f4 $146 {[%emt 0:03:47]} (13. Qd1 $11) ({Predecessor:} 13. a3 Nf6 14. Bg5 Bd7 15. Qd1 Ncd5 16. Bxf6 Nxf6 17. Nc4 Qc7 18. a4 Rbe8 19. Qb3 {0-1 (43) Soto Hernandez,H (2476)-Quesada Perez,L (2515) Santa Clara 2022}) 13... Nf6 $15 {[%emt 0:15:16]} 14. f5 {[%emt 0:12:58]} (14. Nde4 $15) 14... Bd7 $17 {[%emt 0:15:35]} 15. Qc2 {[%emt 0:01:14]} Ng4 {[%emt 0:00:24]} 16. Nc4 {[%emt 0:00:06]} Nxe3 {[%emt 0:02:20]} 17. Nxe3 {[%emt 0:00:02]} Bg5 {[%emt 0:00:06]} 18. Qd2 {[%emt 0:02:13]} h5 {[%emt 0:13:01]} 19. Be4 {[%emt 0:09:28]} Ne8 {[%emt 0:14:02]} 20. Rf3 {[%emt 0:01:55]} Nf6 {[%emt 0:00:07]} 21. Ncd5 {[%emt 0:09:41]} Nxd5 {[%emt 0:04:44]} 22. Bxd5 {[%emt 0:00:31]} Bb5 {[%emt 0:00:04]} 23. Be4 {[%emt 0:00:15]} c4 {[%emt 0:00:09]} 24. h4 {[%emt 0:03:05]} Bh6 {[%emt 0:00:23]} 25. f6 {[%emt 0:09:31]} (25. Rc2 $17) 25... g6 {[%emt 0:00:15]} (25... gxf6 26. Rc2 $15) (25... Qd4 $1 $19 {has better winning chances.} 26. a4 Ba6) 26. Kg2 {[%emt 0:06:51]} Qd4 {[%emt 0:08:57]} (26... Rc8 $1 $17 {aiming for ...Qd4.} 27. Rc3 Re8) 27. Rd1 $2 {[%emt 0:05:55][%mdl 8192] [#]} (27. Rc2 $1 $15) 27... Ba4 $1 $19 {[%emt 0:02:07]} 28. Rb1 {[%emt 0:00:29]} Rfd8 {[%emt 0:02:33] Strongly threatening ...Qxe4.} 29. Qc1 {[%emt 0:01:47]} Rbc8 {[%emt 0:03:47][%cal Rc4d3,Bb8c8,Bc8c6,Bc6e6][%mdl 32]} ({And not} 29... cxd3 30. exd3 Rbc8 31. Qe1 $17) 30. Qg1 {[%emt 0:00:45]} cxd3 {[%emt 0:00:10]} 31. exd3 {[%emt 0:00:08]} Bc6 {[%emt 0:00:37]} 32. Bxc6 {[%emt 0:01:43]} Rxc6 {[%emt 0:00:04]} 33. Qf2 {[%emt 0:01:53]} e4 {[%emt 0:01:56]} 34. dxe4 {[%emt 0:00:12]} Qxe4 {[%emt 0:00:05]} 35. Re1 {[%emt 0:00:20][%cal Oe3f5]} Re8 {[%emt 0:05:39]} ({Not} 35... Rxf6 36. Nf5 Qa8 37. Nxh6+ $17) (35... Re6 $19 {And now ...Qc6 would win.} 36. Nc2 Qd5) 36. Kh2 $17 {[%emt 0:04:59]} Rce6 {[%emt 0:00:45]} 37. Ng2 {[%emt 0:00:41]} Qxe1 {[%emt 0:01:20]} (37... Qc6 $142 38. Rc3 Qd6 39. Rxe6 Rxe6 40. Rc8+ Kh7) 38. Nxe1 {[%emt 0:00:05][%cal Bg2e1,Be1c2,Bc2e3][%mdl 32] Threatens to win with Ng2.} Re2 {[%emt 0:01:02]} 39. Kg2 {[%emt 0:04:01]} R8e6 {[%emt 0:00:23]} 40. Nc2 {[%emt 0:00:00][%cal Ob2b3]} Rxf2+ {[%emt 0:00:00]} 41. Rxf2 {[%emt 0:01:20][%mdl 4096] Endgame KRB-KRN} Rd6 {[%emt 0:03:37]} 42. a4 {[%emt 0:05:22]} Bf8 {[%emt 0:00:46]} 43. b3 {[%emt 0:10:49]} (43. Ne3 $1 $15) 43... Rd5 {[%emt 0:02:30]} (43... Rd3 $19 44. Rf3 Rd2+ 45. Rf2 Rd8) 44. Ne3 $1 $15 {[%emt 0:07:44]} Rd3 {[%emt 0:01:16]} (44... Re5 $15 {feels stronger.} 45. Nc4 Re6) 45. Re2 {[%emt 0:00:03]} (45. Nc4 $1 $11 {was the only way to keep the balance.}) 45... Rd6 {[%emt 0:04:13]} (45... Rxb3 $17 {...Bd6 is the strong threat.} 46. Nd5 Bd6) 46. Rf2 {[%emt 0:00:35]} Rd3 {[%emt 0:00:29]} (46... Kh8 $15) 47. Re2 $17 {[%emt 0:00:05]} Rd6 {[%emt 0:10:01]} ({Better is} 47... Bd6 $17 48. Nc4 Bxg3 49. Re8+ Kh7) 48. Rf2 $15 {[%emt 0:00:06]} Rd3 {[%emt 0:01:58]} ({Black should try} 48... Kh7 $15) 49. Re2 $17 Bd6 50. Nc4 (50. Nf1 $17 {keeps fighting.}) 50... Bxg3 $19 51. Re8+ Kh7 52. Rf8 Bxh4 53. Rxf7+ {[#]} Kh6 $1 {Weighted Error Value: White=0.33/Black=0.27 (precise)} 1/2-1/2

[Event "VII Totalizator Sportowy 2022"]
[Site "Bydgoszcz"]
[Date "2022.07.02"]
[Round "8.4"]
[White "Krasenkow, Michal"]
[Black "Kosakowski, Jakub"]
[Result "1-0"]
[ECO "D80"]
[WhiteElo "2576"]
[BlackElo "2435"]
[Annotator "TA"]
[PlyCount "116"]
[EventDate "2022.06.25"]
[EventType "swiss"]
[EventCountry "POL"]
[SourceTitle "playchess.com"]
[Source "ChessBase"]
[SourceQuality "1"]
[TimeControl "40/5400+30:1800+30"]

{[%evp 9,116,34,35,33,38,25,33,0,16,16,5,6,6,6,6,16,6,6,12,13,13,14,14,0,0,0,0,0,0,0,0,0,0,0,3,5,8,6,4,0,0,0,0,0,0,0,0,0,0,0,0,0,0,0,0,0,0,0,8,8,8,8,8,8,8,8,75,76,133,159,203,197,201,208,205,204,204,199,205,204,197,8,8,8,8,8,8,8,8,8,8,8,29977,29976,29976,29977,29977,29978,29979,29980,29980,29981,29981,29981,29981,29982,29982,29983,29984]} 1. d4 {[%emt 0:00:03]} Nf6 {[%emt 0:00:18]} 2. c4 {[%emt 0:00:04]} g6 {[%emt 0:00:32]} 3. Nc3 {[%emt 0:00:04]} d5 {[%emt 0:00:26]} 4. Bg5 {[%emt 0:00:11]} Bg7 {[%emt 0:01:49]} 5. Bxf6 {[%emt 0:00:21]} Bxf6 {[%emt 0:00:07]} 6. cxd5 {[%emt 0:00:03] D80: Grünfeld: Unusual White 4th moves and 4 Bg5.} c5 {[%emt 0:00:33]} 7. dxc5 {[%emt 0:00:14]} Nd7 {[%emt 0:00:12]} 8. Rc1 $5 {[%emt 0:00:35][%mdl 4] White wants to play b4. White is slightly better. A promising side line.} Nxc5 {[%emt 0:02:00] [#]} 9. g3 $146 {[%emt 0:00:07]} ({Predecessor:} 9. b4 Nd7 10. e3 a5 11. b5 O-O 12. Nf3 Nb6 13. e4 Bg4 14. Be2 Bxf3 15. Bxf3 {0-1 (37) Morchiashvili,B (2326)-Ghosh,D (2550) Al Ain 2015}) 9... O-O {[%emt 0:02:56]} 10. Bg2 {[%emt 0:00:05]} Qb6 $1 {[%emt 0:07:55]} 11. Qd2 {[%emt 0:00:13]} Rd8 {[%emt 0:05:01]} 12. h4 {[%emt 0:01:39]} Bf5 {[%emt 0:07:06]} 13. Nh3 {[%emt 0:01:09]} Bxc3 {[%emt 0:12:34]} 14. bxc3 {[%emt 0:01:28][%cal Bb2c3,Bc3c4][%mdl 32]} Be4 {[%emt 0:02:07]} 15. Bxe4 {[%emt 0:02:20]} Nxe4 {[%emt 0:00:18]} 16. Qf4 {[%emt 0:09:33]} Qb2 {[%emt 0:05:30]} 17. c4 {[%emt 0:02:42]} Rac8 {[%emt 0:01:19][%cal Ob7b5]} 18. Kf1 {[%emt 0:14:19]} Rxd5 {[%emt 0:12:48]} 19. Kg2 {[%emt 0:00:45]} Rd4 {[%emt 0:00:37]} 20. Qe5 {[%emt 0:06:06] Black must now prevent Rb1.} (20. e3 Rdxc4 21. Rxc4 Rxc4 22. Qb8+ Kg7 $17) 20... Qb6 {[%emt 0:02:17]} 21. Rhd1 {[%emt 0:17:32]} Rxd1 {[%emt 0:01:25]} (21... Rcxc4 $2 22. Rxc4 Rxc4 23. Qxe7 $18) 22. Rxd1 {[%emt 0:00:06]} Qc6 $132 {[%emt 0:02:32][%mdl 2048] Black is fighting back} (22... Rxc4 $2 23. Qxe7 Kg7 24. Rd8 $18) 23. f3 {[%emt 0:06:52]} Nd6 {[%emt 0:01:31][%cal Be4d6,Bd6f5,Bf5e3][%mdl 32]} 24. Qxe7 {[%emt 0:03:24]} Nf5 {[%emt 0:00:25]} 25. Rd8+ {[%emt 0:00:29]} Rxd8 {[%emt 0:00:08]} 26. Qxd8+ $11 {[%emt 0:00:04][%mdl 4096] Endgame KQN-KQN} Kg7 {[%emt 0:00:04]} 27. g4 {[%emt 0:08:56]} Ne3+ {[%emt 0:01:30]} 28. Kg3 {[%emt 0:02:42] Threatens to win with Qd4+.} Qxc4 {[%emt 0:00:34]} 29. h5 {[%emt 0:00:24][%cal Oh5h6] White threatens h6+! and mate.} h6 {[%emt 0:15:43]} (29... Qxe2 $2 {gets mated.} 30. h6+ Kxh6 31. Qf8#) 30. hxg6 {[%emt 0:00:28]} Qxe2 {[%emt 0:00:17]} 31. Qd4+ {[%emt 0:00:49]} Kg8 {[%emt 0:00:19]} 32. gxf7+ {[%emt 0:04:10]} Kxf7 {[%emt 0:00:11]} 33. Nf2 {[%emt 0:04:37]} Ke6 {[%emt 0:15:18]} 34. Qxa7 {[%emt 0:09:12]} Nf1+ {[%emt 0:00:27]} 35. Kh4 {[%emt 0:00:01] Qb6+ is the strong threat.} Qxf3 {[%emt 0:00:26]} 36. Qb6+ {[%emt 0:00:12]} Kf7 {[%emt 0:00:39]} 37. Kh5 {[%emt 0:02:12]} Ng3+ {[%emt 0:00:33]} (37... Ne3 $11 {remains equal.}) 38. Kxh6 $16 {[%emt 0:00:17]} Qf4+ {[%emt 0:00:31]} (38... Ke7 $142) 39. Kh7 {[%emt 0:00:06]} Ke8 {[%emt 0:00:29]} 40. Qe6+ {[%emt 0:00:00]} ({Not} 40. Qxb7 Qxf2 41. Qc8+ Kf7 42. Qd7+ Kf6 $11) 40... Kd8 {[%emt 0:00:00] [#]} 41. Nd3 {[%emt 0:07:28]} ({And not} 41. Qd5+ Kc7 $11) 41... Qd4 {[%emt 0:04:29]} 42. Ne5 {[%emt 0:04:51] Strongly threatening Qf6+.} Ne4 {[%emt 0:00:20] ( -> ...Ng5+)} 43. Kg6 {[%emt 0:10:01] Prevents Ng5.} Kc7 {[%emt 0:03:55]} 44. Nf7 {[%emt 0:05:15] Inhibits Qd6.} b5 {[%emt 0:03:50]} 45. Qe5+ $2 {[%emt 0:05:20]} (45. g5 $18) 45... Qxe5 $11 {[%emt 0:00:16]} 46. Nxe5 {[%emt 0:00:02] aiming for Kf5. KN-KN} Nf2 {[%emt 0:02:48]} 47. Kf5 {[%emt 0:05:17] Intending g5 and mate.} Nxg4 {[%emt 0:00:13]} 48. Kxg4 {[%emt 0:00:27] KN-KP} Kd6 {[%emt 0:00:13]} 49. Nd3 {[%emt 0:01:04] Kf3 would kill now.} Kd5 {[%emt 0:00:07]} 50. Kf3 {[%emt 0:00:26] White wants to mate with Ke2.} Kc4 $2 {[%emt 0:06:27][%mdl 8192] [#] Loses the game.} (50... Kd4 $11) 51. Ke2 {[%emt 0:00:11] White mates.} Kc3 {[%emt 0:01:12]} 52. Ke3 {[%emt 0:00:01]} b4 {[%emt 0:00:50]} 53. Ke2 {[%emt 0:00:11]} b3 {[%emt 0:00:18]} 54. a4 {[%emt 0:00:56][%cal Ba2a4,Ba4a5][%mdl 32]} Kd4 {[%emt 0:00:19]} 55. Kd2 {[%emt 0:00:10]} Kc4 {[%emt 0:00:03]} 56. Nb2+ {[%emt 0:00:06]} Kd4 {[%emt 0:00:07]} 57. a5 {[%emt 0:00:04]} Kc5 {[%emt 0:00:14]} 58. Kc3 {[%emt 0:00:05]} Kd5 {Weighted Error Value: White=0.09 (flawless) /Black=0.21 (precise)} 1-0

[Event "VII Totalizator Sportowy 2022"]
[Site "Bydgoszcz"]
[Date "2022.07.02"]
[Round "8.5"]
[White "Gumularz, Szymon"]
[Black "Lewtak, Damian"]
[Result "1/2-1/2"]
[ECO "B06"]
[WhiteElo "2513"]
[BlackElo "2384"]
[Annotator "TA"]
[PlyCount "40"]
[EventDate "2022.06.25"]
[EventType "swiss"]
[EventCountry "POL"]
[SourceTitle "playchess.com"]
[Source "ChessBase"]
[SourceQuality "1"]
[TimeControl "40/5400+30:1800+30"]

{[%evp 9,40,39,42,16,100,88,97,45,88,76,142,85,102,91,100,86,185,125,111,114,96,77,143,102,131,103,115,128,141,119,140,125,110]} 1. d4 {[%emt 0:00:02]} g6 {[%emt 0:00:04]} 2. e4 {[%emt 0:00:36]} Bg7 {[%emt 0:00:05]} 3. Nf3 {[%emt 0:03:34]} c6 {[%emt 0:00:11]} 4. c4 {[%emt 0:05:13]} d5 {[%emt 0:01:30]} 5. e5 {[%emt 0:00:09]} Bg4 {[%emt 0:03:00]} 6. Nc3 {[%emt 0:02:14] B06: Modern Defence.} Bxf3 {[%emt 0:01:26]} (6... Nh6 $11) 7. Qxf3 $16 {[%emt 0:00:29]} (7. gxf3 e6 $11) 7... e6 {[%emt 0:00:25]} 8. cxd5 {[%emt 0:09:15]} ({Better is} 8. h4 $16) 8... exd5 {[%emt 0:01:15] [#]} 9. Bd3 $146 {[%emt 0:17:14]} ({Predecessor:} 9. h4 Qb6 10. Be3 Qxb2 11. Rc1 Nd7 12. Bd3 Ne7 13. h5 Nxe5 14. dxe5 d4 15. Nd1 {1-0 (33) Biolek,R (2434)-Swicarz,M (2309) Olomouc 2001}) 9... Na6 {[%emt 0:10:56]} (9... Ne7 $142) 10. h4 {[%emt 0:17:47]} ({White should play} 10. Bxa6 bxa6 11. O-O) 10... Nc7 {[%emt 0:04:21]} 11. h5 {[%emt 0:00:30] White is much more active.} Qe7 {[%emt 0:10:47]} 12. Be3 {[%emt 0:01:48]} Ne6 {[%emt 0:03:08] [#]} (12... O-O-O $16) 13. O-O-O {[%emt 0:01:00]} (13. h6 $1 $18 {[%cal Rh6g7]} Bf8 14. O-O-O (14. Nxd5 cxd5 15. Bb5+ Kd8 $16)) 13... O-O-O {[%emt 0:03:06]} 14. Kb1 {[%emt 0:03:59]} Kb8 {[%emt 0:04:38]} 15. Bc2 {[%emt 0:01:57]} Qe8 {[%emt 0:03:57]} (15... g5 $142) 16. Qg4 {[%emt 0:07:10]} Ne7 {[%emt 0:03:00]} 17. f4 {[%emt 0:03:03]} c5 {[%emt 0:02:43]} 18. Ne2 {[%emt 0:04:46]} ({Much weaker is} 18. dxc5 $6 d4 19. h6 Bxh6 20. Bxd4 (20. Rxh6 dxc3 21. Rxd8+ Qxd8 $15) 20... Bxf4 $11) 18... b6 {[%emt 0:06:03]} 19. Qf3 {[%emt 0:04:48]} Rf8 {[%emt 0:05:12]} 20. hxg6 {[%emt 0:01:15]} hxg6 {[%emt 0:02:10] Weighted Error Value: White=0.20 (precise) /Black=0.28 (precise)} 1/2-1/2

[Event "VII Totalizator Sportowy 2022"]
[Site "Bydgoszcz"]
[Date "2022.07.02"]
[Round "8.6"]
[White "Maksimenko, Andrei"]
[Black "Golubka, Petro"]
[Result "1-0"]
[ECO "D70"]
[WhiteElo "2434"]
[BlackElo "2380"]
[Annotator "TA"]
[PlyCount "101"]
[EventDate "2022.06.25"]
[EventType "swiss"]
[EventCountry "POL"]
[SourceTitle "playchess.com"]
[Source "ChessBase"]
[SourceQuality "1"]
[TimeControl "40/5400+30:1800+30"]

{[%evp 9,101,4,45,51,57,56,121,96,100,66,59,45,54,18,205,132,118,72,137,139,140,143,137,135,142,140,138,131,163,163,162,155,156,149,155,153,194,191,206,200,201,202,204,207,247,245,232,201,222,204,258,255,259,255,256,243,508,556,534,532,534,470,392,390,745,695,810,754,1478,1401,1623,1427,923,0,754,728,7120,6466,29963,29967,29972,29974,29974,29975,29975,29976,29974,29975,29979,29980,29980,29981,29986,29987]} 1. d4 {[%emt 0:00:03]} d5 {[%emt 0:00:39]} 2. c4 {[%emt 0:00:12]} c6 {[%emt 0:00:51]} 3. Nf3 {[%emt 0:00:32]} Nf6 {[%emt 0:01:06]} 4. Nbd2 {[%emt 0:01:23]} Bf5 {[%emt 0:00:43]} 5. Nh4 {[%emt 0:00:53]} Bg6 {[%emt 0:02:58]} (5... Be4 $5) 6. Qb3 {[%emt 0:01:44] D11: Slav Defence: 3 Nf3 sidelines and 3...Nf6 4 e3 Bg4.} Qb6 {[%emt 0:02:18]} 7. Qh3 $1 {[%emt 0:00:22]} Nbd7 {[%emt 0:02:39]} (7... Bc2 $14) 8. Nxg6 {[%emt 0:00:46] White is better.} fxg6 {[%emt 0:03:12]} 9. e3 {[%emt 0:01:26] [#]} e5 $146 {[%emt 0:02:46]} ({Predecessor:} 9... Kf7 10. Bd3 e6 11. Nf3 h6 12. c5 Qc7 13. Ng5+ hxg5 14. Qxh8 e5 15. O-O Re8 {1-0 (60) Bjerre,J (2549)-Kamsky,G (2674) Chess.com INT 2020}) 10. dxe5 {[%emt 0:02:09]} Ne4 {[%emt 0:00:11]} 11. Bd3 {[%emt 0:09:45]} (11. Qe6+ Be7 $11) 11... Bb4 $2 {[%emt 0:04:16]} (11... Nxd2 $1 $11 12. Bxd2 Qxb2) 12. Bxe4 {[%emt 0:02:49]} dxe4 {[%emt 0:00:08]} 13. O-O {[%emt 0:03:39]} (13. Qe6+ $142 Be7 14. Nxe4 Qa5+ 15. Ke2 Qxe5 16. Qxe5 Nxe5 17. b3) 13... Qc5 {[%emt 0:01:38]} (13... Nc5 $142) 14. Qe6+ {[%emt 0:08:30]} (14. Nxe4 Qxe5 15. Bd2 Bxd2 16. Nxd2 Nf6 $16) 14... Qe7 {[%emt 0:02:20]} 15. Qxe7+ {[%emt 0:02:11]} Kxe7 {[%emt 0:00:17]} 16. Nxe4 {[%emt 0:00:06]} Nxe5 {[%emt 0:00:11]} 17. a3 {[%emt 0:02:09]} Ba5 {[%emt 0:00:09]} 18. b3 {[%emt 0:02:01]} Nd3 {[%emt 0:00:13] Inhibits Bb2.} 19. Rd1 {[%emt 0:00:34]} Rhd8 {[%emt 0:00:21][%cal Od3c5]} 20. Kf1 {[%emt 0:01:20]} h6 {[%emt 0:01:21]} 21. Ke2 {[%emt 0:03:40]} Nxc1+ {[%emt 0:00:11]} 22. Raxc1 {[%emt 0:00:05]} Bc7 {[%emt 0:00:07]} 23. f4 {[%emt 0:02:08]} g5 {[%emt 0:00:08]} 24. fxg5 {[%emt 0:02:51]} hxg5 {[%emt 0:00:17]} 25. h3 {[%emt 0:00:26]} (25. Nxg5 $6 Bxh2 26. Rf1 Rf8 $16) 25... g4 {[%emt 0:00:08]} 26. hxg4 {[%emt 0:00:20]} a5 {[%emt 0:00:28]} 27. Rxd8 {[%emt 0:01:10]} Rxd8 $18 {[%emt 0:00:18][%mdl 4096] Endgame KRB-KRN} 28. Rd1 {[%emt 0:00:08]} Rb8 {[%emt 0:00:21]} 29. a4 {[%emt 0:03:31]} b5 {[%emt 0:03:46]} 30. cxb5 {[%emt 0:00:53]} cxb5 {[%emt 0:00:05]} 31. Nc3 {[%emt 0:01:02]} bxa4 {[%emt 0:00:05]} 32. Nd5+ {[%emt 0:00:30]} (32. Nxa4 Rxb3 33. Kf3 Ra3 $14) ({Much less strong is} 32. bxa4 $6 Be5 $16) 32... Kd6 $2 {[%emt 0:00:10]} (32... Kf7 33. Rf1+ (33. Nxc7 axb3 34. Nd5 a4 $16) (33. bxa4 Bd6 $16) 33... Kg6) 33. Nxc7+ {[%emt 0:00:19]} Kxc7 {[%emt 0:00:05]} 34. bxa4 {[%emt 0:00:05] KR-KR} Rb2+ {[%emt 0:00:25]} 35. Rd2 {[%emt 0:00:28]} Rb4 {[%emt 0:00:04]} 36. Rd4 {[%emt 0:00:05] [#] White threatens Rxb4 and mate.} Rb2+ {[%emt 0:00:03]} (36... Rb1 37. Rd5 Kb6 38. Rd6+ Kc5) 37. Kf3 {[%emt 0:00:04]} Ra2 {[%emt 0:00:34]} 38. g5 {[%emt 0:02:37]} g6 {[%emt 0:00:20]} 39. g4 {[%emt 0:02:05]} Kc6 {[%emt 0:00:28]} 40. Ke4 {[%emt 0:00:00] aiming for Ke5.} Ra3 {[%emt 0:00:00]} 41. Kf3 $2 {[%emt 0:10:45]} (41. Ke5 $18 Rxe3+ 42. Kf6) 41... Kc5 $2 {[%emt 0:02:47][%mdl 8192]} (41... Ra2 $11 42. Kf4 Kc7) 42. Rf4 {[%emt 0:01:45] Strongly threatening Rf6.} Kd5 {[%emt 0:00:16]} 43. Rf6 {[%emt 0:00:32]} Rxa4 {[%emt 0:00:07]} 44. Rxg6 {[%emt 0:00:06] White mates.} Kc5 {[%emt 0:00:27]} 45. Ra6 {[%emt 0:00:52]} Kb5 {[%emt 0:00:11] [#]} 46. g6 $1 {[%emt 0:00:40][%cal Bg5g6,Bg6g7][%mdl 32]} Rc4 {[%emt 0:00:12]} 47. Ra8 {[%emt 0:00:53]} Rc7 {[%emt 0:00:09]} 48. Kf4 {[%emt 0:00:10]} a4 {[%emt 0:00:14]} 49. Kg5 {[%emt 0:00:56]} Kb4 {[%emt 0:00:14]} 50. Kh6 {[%emt 0:00:29]} a3 {[%emt 0:00:18]} 51. g7 {[%emt 0:00:20] Weighted Error Value: White=0.10 (very precise) /Black=0.43} 1-0